[Event "Early-Titled-Tuesday-Blitz-September-26-2023"]
[Site "Chess.com"]
[Date "2023.09.26"]
[Round "5"]
[White "WindWhistler11"]
[Black "sonicdravise"]
[Result "0-1"]
[WhiteElo "2467"]
[BlackElo "2654"]
[TimeControl "180+1"]
[EndTime "8:57:52 PDT"]
[Termination "sonicdravise won on time"]

1. Nf3 {[%clk 0:02:57.1]} 1... g6 {[%clk 0:02:59.9]} 2. g3 {[%clk 0:02:56]} 2...
Bg7 {[%clk 0:03:00.5]} 3. Bg2 {[%clk 0:02:56.1]} 3... c5 {[%clk 0:03:01]} 4. O-O
{[%clk 0:02:56.5]} 4... Nc6 {[%clk 0:03:01.6]} 5. c3 {[%clk 0:02:53.1]} 5... e5
{[%clk 0:02:59.6]} 6. e4 {[%clk 0:02:52.1]} 6... Nge7 {[%clk 0:02:59.5]} 7. d3
{[%clk 0:02:52.2]} 7... O-O {[%clk 0:02:58.5]} 8. Nbd2 {[%clk 0:02:49.9]} 8...
d6 {[%clk 0:02:58.6]} 9. a3 {[%clk 0:02:47.4]} 9... a6 {[%clk 0:02:58.2]} 10. b4
{[%clk 0:02:47.7]} 10... b5 {[%clk 0:02:57.3]} 11. Nb3 {[%clk 0:02:42.2]} 11...
a5 {[%clk 0:02:31.8]} 12. bxc5 {[%clk 0:02:38.3]} 12... a4 {[%clk 0:02:31.8]}
13. cxd6 {[%clk 0:02:36.4]} 13... Qxd6 {[%clk 0:02:30.1]} 14. Nbd2 {[%clk
0:02:32]} 14... Qxd3 {[%clk 0:02:29.8]} 15. Rb1 {[%clk 0:02:23.8]} 15... Qxc3
{[%clk 0:02:20.1]} 16. Qe2 {[%clk 0:01:27.8]} 16... Ba6 {[%clk 0:02:10.2]} 17.
Bb2 {[%clk 0:01:27.6]} 17... Qc5 {[%clk 0:02:09.1]} 18. Rfc1 {[%clk 0:01:23.8]}
18... Qd6 {[%clk 0:02:06.5]} 19. Qe3 {[%clk 0:01:08.1]} 19... Nd4 {[%clk
0:01:46.1]} 20. Nxd4 {[%clk 0:00:55.4]} 20... exd4 {[%clk 0:01:46.5]} 21. Qg5
{[%clk 0:00:55.6]} 21... Rac8 {[%clk 0:01:35.8]} 22. Nf3 {[%clk 0:00:47.3]}
22... Nc6 {[%clk 0:01:20.1]} 23. Bh3 {[%clk 0:00:39.6]} 23... Rcd8 {[%clk
0:01:13.2]} 24. Qc5 {[%clk 0:00:36.7]} 24... Qxc5 {[%clk 0:01:05.5]} 25. Rxc5
{[%clk 0:00:36.5]} 25... Na5 {[%clk 0:01:06.4]} 26. Bf1 {[%clk 0:00:27.3]} 26...
Nb3 {[%clk 0:00:59.6]} 27. Rc7 {[%clk 0:00:22.3]} 27... Rc8 {[%clk 0:00:42.9]}
28. Ra7 {[%clk 0:00:20]} 28... Ra8 {[%clk 0:00:37.9]} 29. Rxa8 {[%clk
0:00:12.7]} 29... Rxa8 {[%clk 0:00:38.8]} 30. Rd1 {[%clk 0:00:11.8]} 30... Rd8
{[%clk 0:00:35.7]} 31. e5 {[%clk 0:00:12.2]} 31... Bb7 {[%clk 0:00:28.1]} 0-1

[Event "Early-Titled-Tuesday-Blitz-September-26-2023"]
[Site "Chess.com"]
[Date "2023.09.26"]
[Round "5"]
[White "ArtemDyachuk"]
[Black "almaguerjm"]
[Result "0-1"]
[WhiteElo "2690"]
[BlackElo "2504"]
[TimeControl "180+1"]
[EndTime "8:57:53 PDT"]
[Termination "almaguerjm won on time"]

1. e4 {[%clk 0:03:00.9]} 1... e5 {[%clk 0:02:59.6]} 2. Nf3 {[%clk 0:03:00.4]}
2... Nc6 {[%clk 0:03:00.1]} 3. Bb5 {[%clk 0:03:00.3]} 3... a6 {[%clk 0:03:00.1]}
4. Ba4 {[%clk 0:02:58.8]} 4... Nf6 {[%clk 0:02:56.8]} 5. d3 {[%clk 0:02:58.8]}
5... Bc5 {[%clk 0:02:49.5]} 6. O-O {[%clk 0:02:58.1]} 6... d6 {[%clk 0:02:46.7]}
7. c3 {[%clk 0:02:57.9]} 7... O-O {[%clk 0:02:39.8]} 8. Nbd2 {[%clk 0:02:54.2]}
8... Ne7 {[%clk 0:02:33.2]} 9. h3 {[%clk 0:02:51.4]} 9... Ng6 {[%clk 0:02:30.6]}
10. Re1 {[%clk 0:02:51.1]} 10... Bd7 {[%clk 0:02:24.9]} 11. Bc2 {[%clk
0:02:50.2]} 11... Ba7 {[%clk 0:02:23.9]} 12. Nf1 {[%clk 0:02:49.4]} 12... Re8
{[%clk 0:02:21.1]} 13. Ng3 {[%clk 0:02:43.8]} 13... h6 {[%clk 0:02:15.1]} 14. d4
{[%clk 0:02:43]} 14... Qc8 {[%clk 0:02:08.9]} 15. Kh2 {[%clk 0:02:27.9]} 15...
Bc6 {[%clk 0:01:58.5]} 16. Bd2 {[%clk 0:01:46]} 16... b5 {[%clk 0:01:56.2]} 17.
Qc1 {[%clk 0:01:42.8]} 17... Kh7 {[%clk 0:01:53.2]} 18. Nf5 {[%clk 0:01:20.8]}
18... Ng8 {[%clk 0:01:38.2]} 19. h4 {[%clk 0:00:54]} 19... Qb7 {[%clk
0:01:29.7]} 20. h5 {[%clk 0:00:51.4]} 20... N6e7 {[%clk 0:01:15]} 21. dxe5
{[%clk 0:00:42]} 21... Nxf5 {[%clk 0:01:07.5]} 22. exf5 {[%clk 0:00:41.5]} 22...
Bxf3 {[%clk 0:01:04.6]} 23. f6+ {[%clk 0:00:28.7]} 23... g6 {[%clk 0:01:04]} 24.
hxg6+ {[%clk 0:00:13.9]} 24... fxg6 {[%clk 0:01:04.4]} 25. Bxg6+ {[%clk
0:00:11.3]} 25... Kxg6 {[%clk 0:01:02.8]} 26. Qc2+ {[%clk 0:00:11.4]} 26... Be4
{[%clk 0:00:49.8]} 27. Rxe4 {[%clk 0:00:10.6]} 27... Nxf6 {[%clk 0:00:50.3]} 28.
Rg4+ {[%clk 0:00:09.3]} 28... Kf7 {[%clk 0:00:50.8]} 29. Qg6+ {[%clk 0:00:09]}
29... Ke6 {[%clk 0:00:50.3]} 30. Qxf6+ {[%clk 0:00:09.2]} 30... Kd7 {[%clk
0:00:50.9]} 31. e6+ {[%clk 0:00:09.3]} 31... Kc8 {[%clk 0:00:47]} 32. Be3 {[%clk
0:00:07.9]} 32... Qd5 {[%clk 0:00:42]} 33. Bxa7 {[%clk 0:00:06.9]} 33... Rxe6
{[%clk 0:00:36.4]} 34. Rg8+ {[%clk 0:00:04.1]} 34... Kb7 {[%clk 0:00:36.9]} 35.
Rxa8 {[%clk 0:00:04]} 35... Rxf6 {[%clk 0:00:32.6]} 0-1

[Event "Early-Titled-Tuesday-Blitz-September-26-2023"]
[Site "Chess.com"]
[Date "2023.09.26"]
[Round "5"]
[White "KamlaPasand"]
[Black "Russian_berezka"]
[Result "1-0"]
[WhiteElo "2439"]
[BlackElo "2588"]
[TimeControl "180+1"]
[EndTime "8:57:56 PDT"]
[Termination "KamlaPasand won by resignation"]

1. e4 {[%clk 0:03:00.9]} 1... e5 {[%clk 0:02:59.8]} 2. Nf3 {[%clk 0:03:01]} 2...
Nc6 {[%clk 0:02:58.3]} 3. Bc4 {[%clk 0:03:00.1]} 3... Bc5 {[%clk 0:02:57.6]} 4.
c3 {[%clk 0:02:58.6]} 4... Nf6 {[%clk 0:02:57.6]} 5. d3 {[%clk 0:02:58.4]} 5...
d6 {[%clk 0:02:57.9]} 6. O-O {[%clk 0:02:56.5]} 6... h6 {[%clk 0:02:58.2]} 7. b4
{[%clk 0:02:56]} 7... Bb6 {[%clk 0:02:57.4]} 8. a4 {[%clk 0:02:56.3]} 8... a5
{[%clk 0:02:57.2]} 9. b5 {[%clk 0:02:53.8]} 9... Ne7 {[%clk 0:02:57.6]} 10. Nbd2
{[%clk 0:02:45.8]} 10... O-O {[%clk 0:02:52.1]} 11. Ba2 {[%clk 0:02:45.6]} 11...
c6 {[%clk 0:02:40.3]} 12. Nc4 {[%clk 0:02:42.2]} 12... Bc7 {[%clk 0:02:38.8]}
13. Re1 {[%clk 0:02:41.3]} 13... Ng6 {[%clk 0:02:33]} 14. Rb1 {[%clk 0:02:39.4]}
14... Re8 {[%clk 0:02:30.1]} 15. Ne3 {[%clk 0:02:37.8]} 15... d5 {[%clk
0:02:24.7]} 16. Qc2 {[%clk 0:02:33.5]} 16... Be6 {[%clk 0:02:11.3]} 17. Rd1
{[%clk 0:02:17.6]} 17... Qe7 {[%clk 0:01:58.5]} 18. bxc6 {[%clk 0:02:14.9]}
18... bxc6 {[%clk 0:01:58.7]} 19. Rb7 {[%clk 0:02:15.3]} 19... Reb8 {[%clk
0:01:53.6]} 20. Rxb8+ {[%clk 0:02:13.6]} 20... Rxb8 {[%clk 0:01:53]} 21. Nd2
{[%clk 0:02:07.8]} 21... d4 {[%clk 0:01:30.5]} 22. cxd4 {[%clk 0:02:05.1]} 22...
exd4 {[%clk 0:01:24.2]} 23. Nf5 {[%clk 0:01:55.6]} 23... Bxf5 {[%clk 0:01:17.8]}
24. exf5 {[%clk 0:01:56.5]} 24... Nh4 {[%clk 0:00:57.7]} 25. g3 {[%clk 0:01:54]}
25... Qe2 {[%clk 0:00:39.7]} 26. Bb3 {[%clk 0:01:41.3]} 26... Ng4 {[%clk
0:00:33.6]} 27. Ne4 {[%clk 0:01:38.7]} 27... Nf3+ {[%clk 0:00:25.1]} 28. Kg2
{[%clk 0:01:37.8]} 28... Ne1+ {[%clk 0:00:16.8]} 29. Rxe1 {[%clk 0:01:35.5]}
29... Qxe1 {[%clk 0:00:17.7]} 30. h3 {[%clk 0:01:28.5]} 30... Ne5 {[%clk
0:00:12.6]} 31. f6 {[%clk 0:01:19.6]} 31... g5 {[%clk 0:00:06.6]} 32. Ba2 {[%clk
0:01:05.2]} 32... Qb4 {[%clk 0:00:05.4]} 33. f4 {[%clk 0:01:00]} 33... gxf4
{[%clk 0:00:04.6]} 34. gxf4 {[%clk 0:01:00.9]} 34... Ng6 {[%clk 0:00:04]} 35.
Qxc6 {[%clk 0:01:00.2]} 35... Bxf4 {[%clk 0:00:03.6]} 36. Qd7 {[%clk 0:00:55.8]}
36... Qf8 {[%clk 0:00:02.9]} 37. Bxf4 {[%clk 0:00:53]} 37... Nxf4+ {[%clk
0:00:03.8]} 38. Kf3 {[%clk 0:00:51.4]} 38... Ng6 {[%clk 0:00:04.1]} 39. Qg4
{[%clk 0:00:51.5]} 39... Kh7 {[%clk 0:00:03.5]} 40. Qh5 {[%clk 0:00:50.2]} 40...
Rb2 {[%clk 0:00:03]} 41. Ng5+ {[%clk 0:00:50]} 41... Kg8 {[%clk 0:00:02.9]} 42.
Qxg6+ {[%clk 0:00:49.7]} 1-0

[Event "Early-Titled-Tuesday-Blitz-September-26-2023"]
[Site "Chess.com"]
[Date "2023.09.26"]
[Round "5"]
[White "Zurability"]
[Black "Maxfan2008"]
[Result "1-0"]
[WhiteElo "2751"]
[BlackElo "2555"]
[TimeControl "180+1"]
[EndTime "8:57:59 PDT"]
[Termination "Zurability won by checkmate"]

1. Nf3 {[%clk 0:02:24.3]} 1... d5 {[%clk 0:02:58.6]} 2. g3 {[%clk 0:02:24.8]}
2... Bg4 {[%clk 0:02:57.6]} 3. Bg2 {[%clk 0:02:25.2]} 3... Nd7 {[%clk
0:02:57.2]} 4. O-O {[%clk 0:02:24]} 4... e6 {[%clk 0:02:57.6]} 5. c4 {[%clk
0:02:23.4]} 5... Ngf6 {[%clk 0:02:56.6]} 6. cxd5 {[%clk 0:02:23.8]} 6... exd5
{[%clk 0:02:57.3]} 7. d4 {[%clk 0:02:15]} 7... c6 {[%clk 0:02:57.1]} 8. Qb3
{[%clk 0:02:15.3]} 8... Qb6 {[%clk 0:02:48.9]} 9. Qe3+ {[%clk 0:02:15.1]} 9...
Be7 {[%clk 0:02:42.9]} 10. h3 {[%clk 0:02:15]} 10... Be6 {[%clk 0:02:38.9]} 11.
Ng5 {[%clk 0:01:53.7]} 11... Nf8 {[%clk 0:02:37.4]} 12. Rd1 {[%clk 0:01:41.6]}
12... h6 {[%clk 0:02:31.3]} 13. Nxe6 {[%clk 0:01:41.5]} 13... Nxe6 {[%clk
0:02:31.8]} 14. h4 {[%clk 0:01:41.8]} 14... O-O {[%clk 0:02:30.5]} 15. Bh3
{[%clk 0:01:33.7]} 15... Ne4 {[%clk 0:02:16.5]} 16. Nc3 {[%clk 0:01:31.1]} 16...
Nxc3 {[%clk 0:02:08.9]} 17. bxc3 {[%clk 0:01:30.9]} 17... c5 {[%clk 0:02:09.2]}
18. Qd3 {[%clk 0:01:11.4]} 18... c4 {[%clk 0:01:59.8]} 19. Qf3 {[%clk
0:01:02.3]} 19... Qc6 {[%clk 0:01:47.3]} 20. Bf5 {[%clk 0:01:00.5]} 20... Rfe8
{[%clk 0:01:42.5]} 21. e4 {[%clk 0:00:54.3]} 21... Nc7 {[%clk 0:01:33.5]} 22. e5
{[%clk 0:00:49.4]} 22... Bf8 {[%clk 0:01:32.5]} 23. Bc2 {[%clk 0:00:49]} 23...
g6 {[%clk 0:01:25.1]} 24. h5 {[%clk 0:00:48.5]} 24... Bg7 {[%clk 0:01:22.7]} 25.
hxg6 {[%clk 0:00:42.2]} 25... fxg6 {[%clk 0:01:22.1]} 26. Kg2 {[%clk 0:00:40.7]}
26... Rf8 {[%clk 0:01:21.9]} 27. Qg4 {[%clk 0:00:41.1]} 27... Kh7 {[%clk
0:01:18]} 28. Rh1 {[%clk 0:00:38.1]} 28... Rf7 {[%clk 0:00:58.5]} 29. Bxh6
{[%clk 0:00:33.4]} 29... Bxh6 {[%clk 0:00:58.3]} 30. Qg5 {[%clk 0:00:31]} 30...
Kg8 {[%clk 0:00:50]} 31. Rxh6 {[%clk 0:00:24]} 31... Rg7 {[%clk 0:00:46.1]} 32.
Rah1 {[%clk 0:00:23.2]} 32... Kf7 {[%clk 0:00:39.6]} 33. Bxg6+ {[%clk
0:00:18.6]} 33... Rxg6 {[%clk 0:00:35.5]} 34. Rh7+ {[%clk 0:00:18.8]} 34... Rg7
{[%clk 0:00:09.8]} 35. Rxg7+ {[%clk 0:00:16.8]} 35... Ke8 {[%clk 0:00:09.2]} 36.
Rh8# {[%clk 0:00:15.8]} 1-0

[Event "Early-Titled-Tuesday-Blitz-September-26-2023"]
[Site "Chess.com"]
[Date "2023.09.26"]
[Round "5"]
[White "Nasrin_Babayeva"]
[Black "Katuducha"]
[Result "1/2-1/2"]
[WhiteElo "1706"]
[BlackElo "2195"]
[TimeControl "180+1"]
[EndTime "8:57:59 PDT"]
[Termination "Game drawn - insufficient material"]

1. c4 {[%clk 0:03:00.9]} 1... Nf6 {[%clk 0:02:58.1]} 2. g3 {[%clk 0:02:56.9]}
2... d5 {[%clk 0:02:57.5]} 3. cxd5 {[%clk 0:02:56.3]} 3... Qxd5 {[%clk
0:02:56.6]} 4. Nf3 {[%clk 0:02:56.7]} 4... Bg4 {[%clk 0:02:55.5]} 5. Bg2 {[%clk
0:02:56.7]} 5... c5 {[%clk 0:02:54.4]} 6. Nc3 {[%clk 0:02:56.3]} 6... Qd8 {[%clk
0:02:53.4]} 7. O-O {[%clk 0:02:56.9]} 7... Nc6 {[%clk 0:02:53]} 8. d3 {[%clk
0:02:56.9]} 8... e6 {[%clk 0:02:50.4]} 9. Be3 {[%clk 0:02:56.9]} 9... Rc8 {[%clk
0:02:48.9]} 10. Rc1 {[%clk 0:02:53.9]} 10... Be7 {[%clk 0:02:48]} 11. h3 {[%clk
0:02:53.1]} 11... Bh5 {[%clk 0:02:41]} 12. Na4 {[%clk 0:02:44.8]} 12... b6
{[%clk 0:02:39.9]} 13. g4 {[%clk 0:02:40.3]} 13... Bg6 {[%clk 0:02:38.7]} 14. d4
{[%clk 0:02:40.6]} 14... Nxd4 {[%clk 0:02:35.9]} 15. Nxd4 {[%clk 0:02:36.5]}
15... cxd4 {[%clk 0:02:34.9]} 16. Rxc8 {[%clk 0:02:36.9]} 16... Qxc8 {[%clk
0:02:34.3]} 17. Qxd4 {[%clk 0:02:36.8]} 17... O-O {[%clk 0:02:34.9]} 18. Rc1
{[%clk 0:02:34.9]} 18... Qa6 {[%clk 0:02:32.5]} 19. Bf3 {[%clk 0:02:30]} 19...
Rd8 {[%clk 0:02:24.8]} 20. Qc4 {[%clk 0:02:19.7]} 20... b5 {[%clk 0:02:24.2]}
21. Qc7 {[%clk 0:02:15.5]} 21... Rd7 {[%clk 0:02:01.7]} 22. Qc8+ {[%clk
0:02:07.9]} 22... Qxc8 {[%clk 0:02:01.2]} 23. Rxc8+ {[%clk 0:02:08.4]} 23... Rd8
{[%clk 0:02:01.8]} 24. Rxd8+ {[%clk 0:02:04.7]} 24... Bxd8 {[%clk 0:02:01]} 25.
Nc3 {[%clk 0:02:02.2]} 25... b4 {[%clk 0:01:59.2]} 26. Nb5 {[%clk 0:02:01.1]}
26... a5 {[%clk 0:01:58.6]} 27. Nd6 {[%clk 0:01:56.9]} 27... Nd5 {[%clk
0:01:56.9]} 28. Bxd5 {[%clk 0:01:50.3]} 28... exd5 {[%clk 0:01:56.4]} 29. Nb7
{[%clk 0:01:49.9]} 29... Bc7 {[%clk 0:01:55.6]} 30. f4 {[%clk 0:01:44.1]} 30...
Bb1 {[%clk 0:01:52.4]} 31. a3 {[%clk 0:01:38.8]} 31... bxa3 {[%clk 0:01:51.6]}
32. bxa3 {[%clk 0:01:39.7]} 32... Ba2 {[%clk 0:01:50.2]} 33. Kf2 {[%clk
0:01:28.3]} 33... Bc4 {[%clk 0:01:49.4]} 34. Kf3 {[%clk 0:01:25.1]} 34... Kf8
{[%clk 0:01:48.2]} 35. Bc5+ {[%clk 0:01:24.1]} 35... Ke8 {[%clk 0:01:48]} 36.
Nd6+ {[%clk 0:01:22.1]} 36... Kd7 {[%clk 0:01:47.7]} 37. Nxf7 {[%clk 0:01:16.5]}
37... Kc6 {[%clk 0:01:42.6]} 38. Bd4 {[%clk 0:01:14.9]} 38... g6 {[%clk
0:01:42.2]} 39. Ng5 {[%clk 0:01:13.2]} 39... h5 {[%clk 0:01:38]} 40. f5 {[%clk
0:00:58.5]} 40... hxg4+ {[%clk 0:01:33.9]} 41. hxg4 {[%clk 0:00:58.4]} 41...
gxf5 {[%clk 0:01:33.8]} 42. gxf5 {[%clk 0:00:59.3]} 42... Bd6 {[%clk 0:01:33.8]}
43. Bb2 {[%clk 0:00:53.1]} 43... Kb5 {[%clk 0:01:33.7]} 44. f6 {[%clk
0:00:51.4]} 44... Ka4 {[%clk 0:01:33.3]} 45. f7 {[%clk 0:00:49.6]} 45... Kb3
{[%clk 0:01:31.8]} 46. Be5 {[%clk 0:00:43.9]} 46... Bxa3 {[%clk 0:01:30.2]} 47.
Ne6 {[%clk 0:00:36.3]} 47... Be7 {[%clk 0:01:23.1]} 48. f8=Q {[%clk 0:00:30.1]}
48... Bxf8 {[%clk 0:01:22]} 49. Nxf8 {[%clk 0:00:31]} 49... a4 {[%clk
0:01:22.3]} 50. Nd7 {[%clk 0:00:28.2]} 50... a3 {[%clk 0:01:21.5]} 51. Nc5+
{[%clk 0:00:28.8]} 51... Kc2 {[%clk 0:01:21.1]} 52. Ke3 {[%clk 0:00:25.4]} 52...
Kb1 {[%clk 0:01:20.4]} 53. Na4 {[%clk 0:00:21.9]} 53... a2 {[%clk 0:01:14.3]}
54. Nc3+ {[%clk 0:00:21.4]} 54... Kc2 {[%clk 0:01:12.9]} 55. Nxa2 {[%clk
0:00:17.2]} 55... Bxa2 {[%clk 0:01:13.2]} 56. Kd4 {[%clk 0:00:17.6]} 56... Kd2
{[%clk 0:01:12]} 57. e4 {[%clk 0:00:18]} 57... dxe4 {[%clk 0:01:11.2]} 58. Kxe4
{[%clk 0:00:18.9]} 1/2-1/2

[Event "Early-Titled-Tuesday-Blitz-September-26-2023"]
[Site "Chess.com"]
[Date "2023.09.26"]
[Round "5"]
[White "GameOverBro"]
[Black "gau248"]
[Result "0-1"]
[WhiteElo "2417"]
[BlackElo "2595"]
[TimeControl "180+1"]
[EndTime "8:58:03 PDT"]
[Termination "gau248 won by resignation"]

1. e4 {[%clk 0:03:00.9]} 1... c6 {[%clk 0:02:57.4]} 2. Nf3 {[%clk 0:03:00.7]}
2... d5 {[%clk 0:02:57.6]} 3. Nc3 {[%clk 0:03:01.2]} 3... dxe4 {[%clk
0:02:55.1]} 4. Nxe4 {[%clk 0:03:02.1]} 4... Nd7 {[%clk 0:02:51.9]} 5. Bc4 {[%clk
0:03:01]} 5... Ngf6 {[%clk 0:02:50.1]} 6. Qe2 {[%clk 0:03:00.2]} 6... e6 {[%clk
0:02:49.3]} 7. d4 {[%clk 0:02:58.7]} 7... Be7 {[%clk 0:02:48.4]} 8. O-O {[%clk
0:02:57.3]} 8... O-O {[%clk 0:02:47.3]} 9. Re1 {[%clk 0:02:52.6]} 9... b5 {[%clk
0:02:46.9]} 10. Bb3 {[%clk 0:02:50.1]} 10... a5 {[%clk 0:02:47.1]} 11. c3 {[%clk
0:02:47.6]} 11... Ba6 {[%clk 0:02:47.1]} 12. Bc2 {[%clk 0:02:47]} 12... b4
{[%clk 0:02:45.5]} 13. Bd3 {[%clk 0:02:47.4]} 13... Bxd3 {[%clk 0:02:28]} 14.
Qxd3 {[%clk 0:02:48.3]} 14... Nxe4 {[%clk 0:02:24.6]} 15. Qxe4 {[%clk
0:02:45.3]} 15... Rc8 {[%clk 0:02:16.9]} 16. Qe2 {[%clk 0:02:35]} 16... Nf6
{[%clk 0:02:13.9]} 17. Bg5 {[%clk 0:02:26.3]} 17... h6 {[%clk 0:02:12.2]} 18.
Bh4 {[%clk 0:02:25.4]} 18... Nd7 {[%clk 0:02:03.1]} 19. Bg3 {[%clk 0:02:22.3]}
19... c5 {[%clk 0:02:02.5]} 20. d5 {[%clk 0:02:19.7]} 20... Bf6 {[%clk
0:02:00.1]} 21. dxe6 {[%clk 0:02:18.2]} 21... fxe6 {[%clk 0:02:00]} 22. Qxe6+
{[%clk 0:02:17.5]} 22... Kh8 {[%clk 0:02:00.4]} 23. Rad1 {[%clk 0:02:05.8]}
23... Re8 {[%clk 0:01:17.8]} 24. Qxd7 {[%clk 0:01:29.4]} 24... Rxe1+ {[%clk
0:01:14.5]} 25. Nxe1 {[%clk 0:01:30.3]} 25... Qg8 {[%clk 0:01:12.8]} 26. Bc7
{[%clk 0:01:18.4]} 26... bxc3 {[%clk 0:01:00.9]} 27. bxc3 {[%clk 0:01:19.3]}
27... Bxc3 {[%clk 0:01:01.2]} 28. Nf3 {[%clk 0:01:19.9]} 28... Bf6 {[%clk
0:01:01.2]} 29. Bxa5 {[%clk 0:01:15]} 29... c4 {[%clk 0:01:00.7]} 30. Qf5 {[%clk
0:01:05.3]} 30... c3 {[%clk 0:00:24.6]} 31. Ne5 {[%clk 0:01:00.6]} 31... Bxe5
{[%clk 0:00:17.6]} 32. Qxe5 {[%clk 0:01:01.5]} 32... c2 {[%clk 0:00:18.5]} 33.
Rc1 {[%clk 0:00:59]} 33... Qc4 {[%clk 0:00:17.1]} 34. Bd2 {[%clk 0:00:56.2]}
34... Qd3 {[%clk 0:00:16.4]} 35. Qf4 {[%clk 0:00:47.5]} 35... Rd8 {[%clk
0:00:13.6]} 36. Be1 {[%clk 0:00:36.4]} 36... Qd1 {[%clk 0:00:13.6]} 37. h4
{[%clk 0:00:34.3]} 37... Re8 {[%clk 0:00:13.3]} 38. Qb4 {[%clk 0:00:29.3]} 38...
Qxc1 {[%clk 0:00:09.6]} 0-1

[Event "Early-Titled-Tuesday-Blitz-September-26-2023"]
[Site "Chess.com"]
[Date "2023.09.26"]
[Round "5"]
[White "seopie"]
[Black "ArmanGhevondyanchess"]
[Result "0-1"]
[WhiteElo "2813"]
[BlackElo "2604"]
[TimeControl "180+1"]
[EndTime "8:58:05 PDT"]
[Termination "ArmanGhevondyanchess won by resignation"]

1. e4 {[%clk 0:02:16.7]} 1... c5 {[%clk 0:02:59.4]} 2. Nf3 {[%clk 0:02:17.1]}
2... Nc6 {[%clk 0:02:59.7]} 3. d4 {[%clk 0:02:17.1]} 3... cxd4 {[%clk
0:03:00.6]} 4. Nxd4 {[%clk 0:02:17.8]} 4... g6 {[%clk 0:03:01.3]} 5. c4 {[%clk
0:02:17.3]} 5... Bg7 {[%clk 0:03:01.3]} 6. Be3 {[%clk 0:02:17.8]} 6... Nf6
{[%clk 0:03:02]} 7. Nc3 {[%clk 0:02:18]} 7... O-O {[%clk 0:03:02.7]} 8. Be2
{[%clk 0:02:17.9]} 8... d6 {[%clk 0:03:00.7]} 9. O-O {[%clk 0:02:18.4]} 9...
Nxd4 {[%clk 0:02:57.8]} 10. Bxd4 {[%clk 0:02:17.7]} 10... a5 {[%clk 0:02:58]}
11. a4 {[%clk 0:02:11.5]} 11... Bd7 {[%clk 0:02:47.7]} 12. b3 {[%clk 0:02:11.2]}
12... Bc6 {[%clk 0:02:47.9]} 13. Re1 {[%clk 0:02:10.5]} 13... Nd7 {[%clk
0:02:48]} 14. Bxg7 {[%clk 0:02:09.1]} 14... Kxg7 {[%clk 0:02:48.9]} 15. Bf1
{[%clk 0:02:09.4]} 15... Nc5 {[%clk 0:02:46.2]} 16. Rb1 {[%clk 0:02:08.1]} 16...
e5 {[%clk 0:02:30.2]} 17. f3 {[%clk 0:01:56.7]} 17... f5 {[%clk 0:02:29.5]} 18.
exf5 {[%clk 0:01:45.3]} 18... gxf5 {[%clk 0:02:27.6]} 19. f4 {[%clk 0:01:44.9]}
19... Ne4 {[%clk 0:02:05.7]} 20. Nxe4 {[%clk 0:01:42.3]} 20... Bxe4 {[%clk
0:02:06.6]} 21. Bd3 {[%clk 0:01:37.2]} 21... Qb6+ {[%clk 0:01:56.4]} 22. Kh1
{[%clk 0:01:36.7]} 22... Bxd3 {[%clk 0:01:44.2]} 23. Qxd3 {[%clk 0:01:36.4]}
23... Rae8 {[%clk 0:01:37.2]} 24. Rbd1 {[%clk 0:01:33.3]} 24... Re6 {[%clk
0:01:21.7]} 25. h3 {[%clk 0:01:29]} 25... Rf7 {[%clk 0:01:18.9]} 26. Qd5 {[%clk
0:01:18.6]} 26... Rfe7 {[%clk 0:01:07]} 27. Rd3 {[%clk 0:01:17.6]} 27... Qf2
{[%clk 0:01:01.7]} 28. Rde3 {[%clk 0:01:01.2]} 28... Qxf4 {[%clk 0:01:00.6]} 29.
c5 {[%clk 0:00:54.4]} 29... dxc5 {[%clk 0:00:57.9]} 30. Qxc5 {[%clk 0:00:54.4]}
30... b6 {[%clk 0:00:50.1]} 31. Qd5 {[%clk 0:00:54.4]} 31... e4 {[%clk
0:00:48.4]} 32. Qd1 {[%clk 0:00:47.4]} 32... Rd6 {[%clk 0:00:45.5]} 33. Qc2
{[%clk 0:00:44.6]} 33... Red7 {[%clk 0:00:40.6]} 34. Qc3+ {[%clk 0:00:40.4]}
34... Kh6 {[%clk 0:00:34.5]} 35. Qh8 {[%clk 0:00:38.5]} 35... Rg6 {[%clk
0:00:26.9]} 36. Qf8+ {[%clk 0:00:37.5]} 36... Rdg7 {[%clk 0:00:25.7]} 37. R3e2
{[%clk 0:00:33.7]} 37... Qh4 {[%clk 0:00:20.4]} 38. Qxf5 {[%clk 0:00:23]} 38...
Rxg2 {[%clk 0:00:20.7]} 39. Rxe4 {[%clk 0:00:15.2]} 39... Rh2+ {[%clk
0:00:18.9]} 0-1

[Event "Early-Titled-Tuesday-Blitz-September-26-2023"]
[Site "Chess.com"]
[Date "2023.09.26"]
[Round "5"]
[White "elegant285"]
[Black "AleksandrAleksikov"]
[Result "1-0"]
[WhiteElo "2401"]
[BlackElo "2217"]
[TimeControl "180+1"]
[EndTime "8:58:06 PDT"]
[Termination "elegant285 won by resignation"]

1. d4 {[%clk 0:03:00.9]} 1... Nf6 {[%clk 0:02:59.6]} 2. c4 {[%clk 0:03:00.5]}
2... g6 {[%clk 0:03:00.2]} 3. Nc3 {[%clk 0:03:00.3]} 3... Bg7 {[%clk 0:03:00.8]}
4. e4 {[%clk 0:03:00.7]} 4... d6 {[%clk 0:03:01.3]} 5. Be2 {[%clk 0:02:58.9]}
5... O-O {[%clk 0:03:00.4]} 6. Be3 {[%clk 0:02:59.6]} 6... e5 {[%clk 0:02:59.9]}
7. d5 {[%clk 0:02:57.3]} 7... a5 {[%clk 0:02:49]} 8. g4 {[%clk 0:02:55.7]} 8...
Na6 {[%clk 0:02:47.9]} 9. h4 {[%clk 0:02:56.2]} 9... Nd7 {[%clk 0:02:45.9]} 10.
Qd2 {[%clk 0:02:32]} 10... f6 {[%clk 0:02:17.8]} 11. h5 {[%clk 0:02:25.4]} 11...
Rf7 {[%clk 0:02:17.5]} 12. Nf3 {[%clk 0:02:13.6]} 12... g5 {[%clk 0:02:03.2]}
13. h6 {[%clk 0:01:55.9]} 13... Bf8 {[%clk 0:02:01.7]} 14. O-O-O {[%clk
0:01:48.8]} 14... Ndc5 {[%clk 0:02:00]} 15. Nxg5 {[%clk 0:01:45.4]} 15... fxg5
{[%clk 0:01:54.7]} 16. Bxg5 {[%clk 0:01:46.3]} 16... Be7 {[%clk 0:01:54.1]} 17.
Be3 {[%clk 0:01:44.5]} 17... Bd7 {[%clk 0:01:30.6]} 18. g5 {[%clk 0:01:40.2]}
18... Qf8 {[%clk 0:01:22.6]} 19. Bh5 {[%clk 0:01:30.9]} 19... Be8 {[%clk
0:01:15.1]} 20. Rdg1 {[%clk 0:01:24.7]} 20... Kh8 {[%clk 0:01:00.5]} 21. Kb1
{[%clk 0:01:21.2]} 21... Rf3 {[%clk 0:00:44.9]} 22. g6 {[%clk 0:00:54.6]} 22...
hxg6 {[%clk 0:00:40.4]} 23. Bxg6 {[%clk 0:00:55.5]} 23... Bxg6 {[%clk
0:00:37.9]} 24. Rxg6 {[%clk 0:00:56.4]} 24... Nxe4 {[%clk 0:00:32.8]} 25. Nxe4
{[%clk 0:00:45.4]} 25... Qf5 {[%clk 0:00:31.6]} 26. Rhg1 {[%clk 0:00:27]} 26...
Qxe4+ {[%clk 0:00:31.1]} 27. Ka1 {[%clk 0:00:27.4]} 27... Nb4 {[%clk 0:00:29.8]}
28. a3 {[%clk 0:00:15.9]} 28... Nc2+ {[%clk 0:00:28.4]} 29. Ka2 {[%clk
0:00:16.2]} 29... Nxe3 {[%clk 0:00:27.9]} 30. fxe3 {[%clk 0:00:15.4]} 30... Qxe3
{[%clk 0:00:22.4]} 31. Qg2 {[%clk 0:00:15.2]} 31... Bf6 {[%clk 0:00:11.3]} 32.
Rg8+ {[%clk 0:00:14.1]} 1-0